Workbook

Sheet Zaměstnanci
B3: ZAMĚSTNANCI A DNY - vyhledávání výkonů zaměstnanců v jednotlivých dnech či měsících
D5: VYHLEDAT DLE
A6: š
B12: (1/9/13 až 31/10/13) | F12: ZÁŘÍ | G12: ŘÍJEN | H12: CELKEM
B13: Pracoval/a | C13: =IF(C12="","",VLOOKUP(C12,C49:E109,3,FALSE)) ->  | E13: Pracoval/a dní | F13: =IF($E$12="","",VLOOKUP($E$12,'Měsíční přehledy'!$C$10:$D$14,2,FALSE)) ->  | G13: =IF($E$12="","",VLOOKUP($E$12,'Měsíční přehledy'!$C$24:$D$28,2,FALSE)) ->  | H13: =IF($E$12="","",VLOOKUP($E$12,'Měsíční přehledy'!$C$37:$D$41,2,FALSE)) -> 
B14: Den v týdnu | C14: =IF(C12="","",VLOOKUP(C12,C49:E109,2,FALSE)) ->  | E14: Vyrobil/a | F14: =IF($F$13="","",VLOOKUP($E$12,'Měsíční přehledy'!C10:E14,3,FALSE)) ->  | G14: =IF($E$12="","",VLOOKUP($E$12,'Měsíční přehledy'!C24:E28,3,FALSE)) ->  | H14: =IF($E$12="","",VLOOKUP($E$12,'Měsíční přehledy'!C37:E41,3,FALSE)) -> 
B15: Vyrobeno v tento den | C15: =IF($C$12="","",VLOOKUP($C$12,$C$49:$I$109,7,FALSE)) ->  | E15: Denní průměr | F15: =IF(E12="","",F14/(VLOOKUP($E$12,'Měsíční přehledy'!C10:D14,2,FALSE))) ->  | G15: =IF(E12="","",G14/(VLOOKUP($E$12,'Měsíční přehledy'!C24:D28,2,FALSE))) ->  | H15: =IF(E12="","",H14/(VLOOKUP($E$12,'Měsíční přehledy'!C37:D41,2,FALSE))) -> 
B16: Požadovaný standard | C16: =IF(OR(C13="",C13=0),"",'Optimalizace Výroby'!O16) ->  | E16: Denní odklon | F16: =IF($E$12="","",VLOOKUP($E$12,'Měsíční přehledy'!$C$10:$K$14,9,FALSE)) ->  | G16: =IF($E$12="","",VLOOKUP($E$12,'Měsíční přehledy'!$C$24:$K$28,9,FALSE)) ->  | H16: =IF($E$12="","",VLOOKUP($E$12,'Měsíční přehledy'!$C$37:$K$41,9,FALSE)) -> 
B17: Odklon od požadovaného standardu | C17: =IF(OR(C13="",C13=0),"",C15-C16) ->  | E17: Průměrná efektivita | F17: =IF($E$12="","",VLOOKUP($E$12,'Měsíční přehledy'!$C$10:$I$14,7,FALSE)) ->  | G17: =IF($E$12="","",VLOOKUP($E$12,'Měsíční přehledy'!$C$24:$I$28,7,FALSE)) ->  | H17: =IF($E$12="","",VLOOKUP($E$12,'Měsíční přehledy'!$C$37:$I$41,7,FALSE)) -> 
B18: Denní standard v měsíci (všech zam.) | C18: =IF(OR(C13="",C13=0),"",IF($C$12<41548,'Měsíční přehledy'!$E$17,'Měsíční přehledy'!$E$31)) ->  | E18: Prům. efektivita všech | F18: =IF(E12="","",'Měsíční přehledy'!I16) ->  | G18: =IF(E12="","",'Měsíční přehledy'!I30) ->  | H18: =IF(E12="","",'Měsíční přehledy'!I43) -> 
B19: Odklon od tohoto standardu | C19: =IF(OR(C13="",C13=0),"",IF($C$12<41548,$C$15-'Měsíční přehledy'!$E$17,$C$15-'Měsíční přehledy'!$E$31)) -> 
B20: Denní standard v měsíci (osobní) | C20: =IF(OR(C13="",C13=0),"",IF($C$12<41548,VLOOKUP(C13,'Měsíční přehledy'!$C$10:$F$14,4,FALSE),VLOOKUP($C$13,'Měsíční přehledy'!$C$24:$F$28,4,FALSE))) -> 
B21: Odklon od tohoto standardu | C21: =IF(OR(C13="",C13=0),"",C15-C20) -> 
B22: Průměrný denní odklon v daném měsíci | C22: =IF(OR(C13="",C13=0),"",IF($C$12<41548,VLOOKUP(C13,'Měsíční přehledy'!$C$10:$K$14,9,FALSE),VLOOKUP($C$13,'Měsíční přehledy'!$C$24:$K$28,9,FALSE))) -> 
B23: Celkový průměrný denní odklon (osobní) | C23: =IF(OR(C13="",C13=0),"",VLOOKUP(C13,'Měsíční přehledy'!$C$37:$K$41,9,FALSE)) -> 
B24: Denní efektivita | C24: =IF(OR($C$13="",$C$13=0),"",VLOOKUP($C$12,$C$49:$I$109,6,FALSE)) ->  | E24: ='Základ pro mzdu'!E10 -> Efektivita | H24: ='Základ pro mzdu'!H10 -> Průměrný denní odklon od požadavku
B25: Průměrná efektivita v daném měsíci | C25: =IF(OR(C13="",C13=0),"",IF($C$12<41548,VLOOKUP(C13,'Měsíční přehledy'!$C$10:$I$14,7,FALSE),VLOOKUP($C$13,'Měsíční přehledy'!$C$24:$I$28,7,FALSE))) ->  | E25: ='Základ pro mzdu'!E11 -> menší než 93% (včetně) | G25: ='Základ pro mzdu'!G11 -> 0 | I25: ='Základ pro mzdu'!I11 -> <0 | J25: ='Základ pro mzdu'!J11 -> 0
B26: Průměrná efektivita celkem (osobní) | C26: =IF(OR(C13="",C13=0),"",VLOOKUP(C13,'Měsíční přehledy'!$C$37:$I$41,7,FALSE)) ->  | E26: ='Základ pro mzdu'!E12 -> 0.93 | F26: ='Základ pro mzdu'!F12 -> 0.94 | G26: ='Základ pro mzdu'!G12 -> 0.05 | H26: ='Základ pro mzdu'!H12 -> 0 | I26: ='Základ pro mzdu'!I12 -> 5 | J26: ='Základ pro mzdu'!J12 -> 0.05
B27: Vyrobeno zmetků | C27: =IF(OR(C13="",C13=0),"",VLOOKUP($C$12,$C$49:$I$109,5,FALSE)) ->  | E27: ='Základ pro mzdu'!E13 -> 0.95 | F27: ='Základ pro mzdu'!F13 -> 0.96 | G27: ='Základ pro mzdu'!G13 -> 0.075 | H27: ='Základ pro mzdu'!H13 -> 6 | I27: ='Základ pro mzdu'!I13 -> 10 | J27: ='Základ pro mzdu'!J13 -> 0.075
B28: Průměr zmetků na den | C28: =IF(OR(C13="",C13=0),"",'Měsíční přehledy'!H44) ->  | E28: ='Základ pro mzdu'!E14 -> 0.96 | F28: ='Základ pro mzdu'!F14 -> (včetně 96 %) 100% | G28: ='Základ pro mzdu'!G14 -> 0.1 | H28: ='Základ pro mzdu'!H14 -> 11 | I28: ='Základ pro mzdu'!I14 -> a více | J28: ='Základ pro mzdu'!J14 -> 0.1
C47: Datum | D47: Den | E47: Zaměstnanec | F47: Vyrobeno | G47: Z toho zmetků | H47: Efektivita | I47: Vyrobeno beze zmetků
C49: 41518 | D49: Neděle
C50: 41519 | D50: Pondělí | E50: =Marie -> Marie Procházková | F50: 286 | G50: 27 | H50: =(F50-G50)/F50 -> 0.9055944056 | I50: =F50-G50 -> 259
C51: 41520 | D51: Úterý | E51: Tomáš Novák | F51: 246 | G51: 21 | H51: =(F51-G51)/F51 -> 0.9146341463 | I51: 225
C52: 41521 | D52: Středa | E52: Lucie Růžičková | F52: 304 | G52: 22 | H52: 0.9276315789 | I52: 282
C53: 41522 | D53: Čtvrtek | E53: Zdeněk Lichý | F53: 330 | G53: 30 | H53: 0.9090909091 | I53: 300
C54: 41523 | D54: Pátek | E54: Jan Soukup | F54: 276 | G54: 22 | H54: 0.9202898551 | I54: 254
C55: 41524 | D55: Sobota | E55: Marie Procházková | F55: 263 | G55: 25 | H55: 0.9049429658 | I55: 238
C56: 41525 | D56: Neděle
C57: 41526 | D57: Pondělí | E57: Tomáš Novák | F57: 342 | G57: 24 | H57: 0.9298245614 | I57: 318
C58: 41527 | D58: Úterý | E58: Lucie Růžičková | F58: 231 | G58: 23 | H58: 0.9004329004 | I58: 208
C59: 41528 | D59: Středa | E59: Zdeněk Lichý | F59: 224 | G59: 23 | H59: 0.8973214286 | I59: 201
C60: 41529 | D60: Čtvrtek | E60: Jan Soukup | F60: 247 | G60: 24 | H60: 0.9028340081 | I60: 223
C61: 41530 | D61: Pátek | E61: Marie Procházková | F61: 222 | G61: 7 | H61: 0.9684684685 | I61: 215
C62: 41531 | D62: Sobota | E62: Tomáš Novák | F62: 299 | G62: 29 | H62: 0.9030100334 | I62: 270
C63: 41532 | D63: Neděle
C64: 41533 | D64: Pondělí | E64: Lucie Růžičková | F64: 279 | G64: 9 | H64: 0.9677419355 | I64: 270
C65: 41534 | D65: Úterý | E65: Zdeněk Lichý | F65: 258 | G65: 33 | H65: 0.8720930233 | I65: 225
C66: 41535 | D66: Středa | E66: Jan Soukup | F66: 234 | G66: 12 | H66: 0.9487179487 | I66: 222
C67: 41536 | D67: Čtvrtek | E67: Marie Procházková | F67: 325 | G67: 19 | H67: 0.9415384615 | I67: 306
C68: 41537 | D68: Pátek | E68: Tomáš Novák | F68: 222 | G68: 27 | H68: 0.8783783784 | I68: 195
C69: 41538 | D69: Sobota | E69: Lucie Růžičková | F69: 288 | G69: 14 | H69: 0.9513888889 | I69: 274
C70: 41539 | D70: Neděle
C71: 41540 | D71: Pondělí | E71: Zdeněk Lichý | F71: 270 | G71: 16 | H71: 0.9407407407 | I71: 254
C72: 41541 | D72: Úterý | E72: Jan Soukup | F72: 271 | G72: 15 | H72: 0.9446494465 | I72: 256
C73: 41542 | D73: Středa | E73: Marie Procházková | F73: 339 | G73: 25 | H73: 0.9262536873 | I73: 314
C74: 41543 | D74: Čtvrtek | E74: Tomáš Novák | F74: 262 | G74: 22 | H74: 0.9160305344 | I74: 240
C75: 41544 | D75: Pátek | E75: Lucie Růžičková | F75: 257 | G75: 13 | H75: 0.9494163424 | I75: 244
C76: 41545 | D76: Sobota | E76: Zdeněk Lichý | F76: 259 | G76: 9 | H76: 0.9652509653 | I76: 250
C77: 41546 | D77: Neděle
C78: 41547 | D78: Pondělí | E78: Jan Soukup | F78: 221 | G78: 11 | H78: 0.9502262443 | I78: 210
C79: 41548 | D79: Úterý | E79: Marie Procházková | F79: 335 | G79: 17 | H79: 0.9492537313 | I79: 318
C80: 41549 | D80: Středa | E80: Tomáš Novák | F80: 260 | G80: 18 | H80: 0.9307692308 | I80: 242
C81: 41550 | D81: Čtvrtek | E81: Lucie Růžičková | F81: 285 | G81: 8 | H81: 0.9719298246 | I81: 277
C82: 41551 | D82: Pátek | E82: Zdeněk Lichý | F82: 334 | G82: 7 | H82: 0.9790419162 | I82: 327
C83: 41552 | D83: Sobota | E83: Jan Soukup | F83: 332 | G83: 16 | H83: 0.9518072289 | I83: 316
C84: 41553 | D84: Neděle
C85: 41554 | D85: Pondělí | E85: Marie Procházková | F85: 281 | G85: 31 | H85: 0.8896797153 | I85: 250
C86: 41555 | D86: Úterý | E86: Tomáš Novák | F86: 334 | G86: 29 | H86: 0.9131736527 | I86: 305
C87: 41556 | D87: Středa | E87: Lucie Růžičková | F87: 240 | G87: 9 | H87: 0.9625 | I87: 231
C88: 41557 | D88: Čtvrtek | E88: Zdeněk Lichý | F88: 309 | G88: 13 | H88: 0.9579288026 | I88: 296
C89: 41558 | D89: Pátek | E89: Jan Soukup | F89: 335 | G89: 14 | H89: 0.9582089552 | I89: 321
C90: 41559 | D90: Sobota | E90: Marie Procházková | F90: 364 | G90: 27 | H90: 0.9258241758 | I90: 337
C91: 41560 | D91: Neděle
C92: 41561 | D92: Pondělí | E92: Tomáš Novák | F92: 232 | G92: 30 | H92: 0.8706896552 | I92: 202
C93: 41562 | D93: Úterý | E93: Lucie Růžičková | F93: 291 | G93: 26 | H93: 0.910652921 | I93: 265
C94: 41563 | D94: Středa | E94: Zdeněk Lichý | F94: 264 | G94: 16 | H94: 0.9393939394 | I94: 248
C95: 41564 | D95: Čtvrtek | E95: Jan Soukup | F95: 350 | G95: 28 | H95: 0.92 | I95: 322
C96: 41565 | D96: Pátek | E96: Marie Procházková | F96: 224 | G96: 9 | H96: 0.9598214286 | I96: 215
C97: 41566 | D97: Sobota | E97: Tomáš Novák | F97: 264 | G97: 8 | H97: 0.9696969697 | I97: 256
C98: 41567 | D98: Neděle
C99: 41568 | D99: Pondělí | E99: Lucie Růžičková | F99: 335 | G99: 19 | H99: 0.9432835821 | I99: 316
C100: 41569 | D100: Úterý | E100: Zdeněk Lichý | F100: 315 | G100: 25 | H100: 0.9206349206 | I100: 290
C101: 41570 | D101: Středa | E101: Jan Soukup | F101: 280 | G101: 29 | H101: 0.8964285714 | I101: 251
C102: 41571 | D102: Čtvrtek | E102: Marie Procházková | F102: 326 | G102: 13 | H102: 0.9601226994 | I102: 313
C103: 41572 | D103: Pátek | E103: Tomáš Novák | F103: 271 | G103: 17 | H103: 0.9372693727 | I103: 254
C104: 41573 | D104: Sobota | E104: Lucie Růžičková | F104: 266 | G104: 23 | H104: 0.9135338346 | I104: 243
C105: 41574 | D105: Neděle
C106: 41575 | D106: Pondělí | E106: Zdeněk Lichý | F106: 263 | G106: 18 | H106: 0.9315589354 | I106: 245
C107: 41576 | D107: Úterý | E107: Jan Soukup | F107: 287 | G107: 10 | H107: 0.9651567944 | I107: 277
C108: 41577 | D108: Středa | E108: Marie Procházková | F108: 284 | G108: 12 | H108: 0.9577464789 | I108: 272
C109: 41578 | D109: Čtvrtek | E109: Tomáš Novák | F109: 300 | G109: 12 | H109: 0.96 | I109: 288

Sheet Měsíční přehledy
C3: Měsíční přehledy
C7: Září
C8: Zaměstnanci | D8: Odpracovali dní | E8: Vyrobil/a celkem | F8: Denně | G8: Odklon od měs. průměru | H8: Celkem zmetků | I8: Efektivita | J8: Denní odklon od měs. průměru | K8: Odklon od požadavku
F9: Denně | K9: Denní odklon od požadavku
C10: Marie Procházková | D10: =COUNTIFS(Zaměstnanci!$E$49:$E$109,"=Marie Procházková",Zaměstnanci!$C$49:$C$109,"<41548") -> 5 | E10: =SUMIFS(Zaměstnanci!$I$49:$I$109,Zaměstnanci!$E$49:$E$109,"=Marie Procházková",Zaměstnanci!$C$49:$C$109,"<41548") -> 1332 | F10: =E10/D10 -> 266.4 | G10: =E10-$E$16 -> 81.4 | H10: =SUMIFS(Zaměstnanci!$G$49:$G$109,Zaměstnanci!$E$49:$E$109,"=Marie Procházková",Zaměstnanci!$C$49:$C$109,"<41548") -> 103 | I10: =E10/(E10+H10) -> 0.9282229965 | J10: =G10/D10 -> 16.28 | K10: ='Měsíční přehledy'!F10-'Optimalizace Výroby'!$O$16 -> 6.4
C11: Tomáš Novák | D11: =COUNTIFS(Zaměstnanci!$E$49:$E$109,"=Tomáš Novák",Zaměstnanci!$C$49:$C$109,"<41548") -> 5 | E11: =SUMIFS(Zaměstnanci!$I$49:$I$109,Zaměstnanci!$E$49:$E$109,"=Tomáš Novák",Zaměstnanci!$C$49:$C$109,"<41548") -> 1248 | F11: =E11/D11 -> 249.6 | G11: =E11-$E$16 -> -2.6 | H11: =SUMIFS(Zaměstnanci!$G$49:$G$109,Zaměstnanci!$E$49:$E$109,"=Tomáš Novák",Zaměstnanci!$C$49:$C$109,"<41548") -> 123 | I11: =E11/(E11+H11) -> 0.9102844639 | J11: =G11/D11 -> -0.52 | K11: ='Měsíční přehledy'!F11-'Optimalizace Výroby'!$O$16 -> -10.4
C12: Lucie Růžičková | D12: =COUNTIFS(Zaměstnanci!$E$49:$E$109,"=Lucie Růžičková",Zaměstnanci!$C$49:$C$109,"<41548") -> 5 | E12: =SUMIFS(Zaměstnanci!$I$49:$I$109,Zaměstnanci!$E$49:$E$109,"=Lucie Růžičková",Zaměstnanci!$C$49:$C$109,"<41548") -> 1278 | F12: =E12/D12 -> 255.6 | G12: =E12-$E$16 -> 27.4 | H12: =SUMIFS(Zaměstnanci!$G$49:$G$109,Zaměstnanci!$E$49:$E$109,"=Lucie Růžičková",Zaměstnanci!$C$49:$C$109,"<41548") -> 81 | I12: =E12/(E12+H12) -> 0.940397351 | J12: =G12/D12 -> 5.48 | K12: ='Měsíční přehledy'!F12-'Optimalizace Výroby'!$O$16 -> -4.4
C13: Zdeněk Lichý | D13: =COUNTIFS(Zaměstnanci!$E$49:$E$109,"=Zdeněk Lichý",Zaměstnanci!$C$49:$C$109,"<41548") -> 5 | E13: =SUMIFS(Zaměstnanci!$I$49:$I$109,Zaměstnanci!$E$49:$E$109,"=Zdeněk Lichý",Zaměstnanci!$C$49:$C$109,"<41548") -> 1230 | F13: =E13/D13 -> 246 | G13: =E13-$E$16 -> -20.6 | H13: =SUMIFS(Zaměstnanci!$G$49:$G$109,Zaměstnanci!$E$49:$E$109,"=Zdeněk Lichý",Zaměstnanci!$C$49:$C$109,"<41548") -> 111 | I13: =E13/(E13+H13) -> 0.9172259508 | J13: =G13/D13 -> -4.12 | K13: ='Měsíční přehledy'!F13-'Optimalizace Výroby'!$O$16 -> -14
C14: Jan Soukup | D14: =COUNTIFS(Zaměstnanci!$E$49:$E$109,"=Jan Soukup",Zaměstnanci!$C$49:$C$109,"<41548") -> 5 | E14: =SUMIFS(Zaměstnanci!$I$49:$I$109,Zaměstnanci!$E$49:$E$109,"=Jan Soukup",Zaměstnanci!$C$49:$C$109,"<41548") -> 1165 | F14: =E14/D14 -> 233 | G14: =E14-$E$16 -> -85.6 | H14: =SUMIFS(Zaměstnanci!$G$49:$G$109,Zaměstnanci!$E$49:$E$109,"=Jan Soukup",Zaměstnanci!$C$49:$C$109,"<41548") -> 84 | I14: =E14/(E14+H14) -> 0.932746197 | J14: =G14/D14 -> -17.12 | K14: ='Měsíční přehledy'!F14-'Optimalizace Výroby'!$O$16 -> -27
C15: Celkem | D15: =SUM(D10:D14) -> 25 | E15: =SUM(E10:E14) -> 6253 | H15: =SUM(H10:H14) -> 502
C16: Průměr/zaměstnanec | D16: =AVERAGE(D10:D14) -> 5 | E16: =AVERAGE(E10:E14) -> 1250.6 | H16: =AVERAGE(H10:H14) -> 100.4 | I16: =AVERAGE(I10:I14) -> 0.9257753918
C17: Průmer/den | E17: =E15/D15 -> 250.12 | H17: =H15/D15 -> 20.08
C21: Říjen
C22: Zaměstnanci | D22: Odpracovali dní | E22: Vyrobil/a celkem | G22: Odklon od měs. průměru | H22: Celkem zmetků | I22: Efektivita | J22: Denní odklon od měs. průměru | K22: Odklon od požadavku
F23: Denně | K23: Denní odklon od požadavku
C24: Marie Procházková | D24: =COUNTIFS(Zaměstnanci!$E$49:$E$109,"=Marie Procházková",Zaměstnanci!$C$49:$C$109,">=41548") -> 6 | E24: =SUMIFS(Zaměstnanci!$I$49:$I$109,Zaměstnanci!$E$49:$E$109,"=Marie Procházková",Zaměstnanci!$C$49:$C$109,">=41548") -> 1705 | F24: =E24/D24 -> 284.1666667 | G24: =E24-($E$31*D24) -> 43.44444444 | H24: =SUMIFS(Zaměstnanci!$G$49:$G$109,Zaměstnanci!$E$49:$E$109,"=Marie Procházková",Zaměstnanci!$C$49:$C$109,">=41548") -> 109 | I24: =E24/(E24+H24) -> 0.9399117971 | J24: =G24/D24 -> 7.240740741 | K24: ='Měsíční přehledy'!F24-'Optimalizace Výroby'!$O$16 -> 24.16666667
C25: Tomáš Novák | D25: =COUNTIFS(Zaměstnanci!$E$49:$E$109,"=Tomáš Novák",Zaměstnanci!$C$49:$C$109,">=41548") -> 6 | E25: =SUMIFS(Zaměstnanci!$I$49:$I$109,Zaměstnanci!$E$49:$E$109,"=Tomáš Novák",Zaměstnanci!$C$49:$C$109,">=41548") -> 1547 | F25: =E25/D25 -> 257.8333333 | G25: =E25-($E$31*D25) -> -114.5555556 | H25: =SUMIFS(Zaměstnanci!$G$49:$G$109,Zaměstnanci!$E$49:$E$109,"=Tomáš Novák",Zaměstnanci!$C$49:$C$109,">=41548") -> 114 | I25: =E25/(E25+H25) -> 0.9313666466 | J25: =G25/D25 -> -19.09259259 | K25: ='Měsíční přehledy'!F25-'Optimalizace Výroby'!$O$16 -> -2.166666667
C26: Lucie Růžičková | D26: =COUNTIFS(Zaměstnanci!$E$49:$E$109,"=Lucie Růžičková",Zaměstnanci!$C$49:$C$109,">=41548") -> 5 | E26: =SUMIFS(Zaměstnanci!$I$49:$I$109,Zaměstnanci!$E$49:$E$109,"=Lucie Růžičková",Zaměstnanci!$C$49:$C$109,">=41548") -> 1332 | F26: =E26/D26 -> 266.4 | G26: =E26-($E$31*D26) -> -52.62962963 | H26: =SUMIFS(Zaměstnanci!$G$49:$G$109,Zaměstnanci!$E$49:$E$109,"=Lucie Růžičková",Zaměstnanci!$C$49:$C$109,">=41548") -> 85 | I26: =E26/(E26+H26) -> 0.9400141143 | J26: =G26/D26 -> -10.52592593 | K26: ='Měsíční přehledy'!F26-'Optimalizace Výroby'!$O$16 -> 6.4
C27: Zdeněk Lichý | D27: =COUNTIFS(Zaměstnanci!$E$49:$E$109,"=Zdeněk Lichý",Zaměstnanci!$C$49:$C$109,">=41548") -> 5 | E27: =SUMIFS(Zaměstnanci!$I$49:$I$109,Zaměstnanci!$E$49:$E$109,"=Zdeněk Lichý",Zaměstnanci!$C$49:$C$109,">=41548") -> 1406 | F27: =E27/D27 -> 281.2 | G27: =E27-($E$31*D27) -> 21.37037037 | H27: =SUMIFS(Zaměstnanci!$G$49:$G$109,Zaměstnanci!$E$49:$E$109,"=Zdeněk Lichý",Zaměstnanci!$C$49:$C$109,">=41548") -> 79 | I27: =E27/(E27+H27) -> 0.9468013468 | J27: =G27/D27 -> 4.274074074 | K27: ='Měsíční přehledy'!F27-'Optimalizace Výroby'!$O$16 -> 21.2
C28: Jan Soukup | D28: =COUNTIFS(Zaměstnanci!$E$49:$E$109,"=Jan Soukup",Zaměstnanci!$C$49:$C$109,">=41548") -> 5 | E28: =SUMIFS(Zaměstnanci!$I$49:$I$109,Zaměstnanci!$E$49:$E$109,"=Jan Soukup",Zaměstnanci!$C$49:$C$109,">=41548") -> 1487 | F28: =E28/D28 -> 297.4 | G28: =E28-($E$31*D28) -> 102.3703704 | H28: =SUMIFS(Zaměstnanci!$G$49:$G$109,Zaměstnanci!$E$49:$E$109,"=Jan Soukup",Zaměstnanci!$C$49:$C$109,">=41548") -> 97 | I28: =E28/(E28+H28) -> 0.9387626263 | J28: =G28/D28 -> 20.47407407 | K28: ='Měsíční přehledy'!F28-'Optimalizace Výroby'!$O$16 -> 37.4
C29: Celkem | D29: =SUM(D24:D28) -> 27 | E29: =SUM(E24:E28) -> 7477 | H29: =SUM(H24:H28) -> 484
C30: Průměr/zaměstnanec | D30: =AVERAGE(D24:D28) -> 5.4 | E30: =AVERAGE(E24:E28) -> 1495.4 | H30: =AVERAGE(H24:H28) -> 96.8 | I30: =AVERAGE(I24:I28) -> 0.9393713062
C31: Průměr/den | E31: =E29/D29 -> 276.9259259 | H31: =H29/D29 -> 17.92592593
C34: Celkem
C35: Zaměstnanci | D35: Odpracovali dní | E35: Vyrobil/a celkem | F35: Denně | G35: Odklon od celk. průměru | H35: Celkem zmetků | I35: Efektivita | J35: Denní odklon od celk. průměru | K35: Odklon od požadavku
K36: Denní odklon od požadavku
C37: Marie Procházková | D37: =COUNTIFS(Zaměstnanci!$E$49:$E$109,"=Marie Procházková") -> 11 | E37: =SUMIFS(Zaměstnanci!$I$49:$I$109,Zaměstnanci!$E$49:$E$109,"=Marie Procházková") -> 3037 | F37: =E37/D37 -> 276.0909091 | G37: =E37-($E$44*D37) -> 132.5769231 | H37: =SUMIFS(Zaměstnanci!$G$49:$G$109,Zaměstnanci!$E$49:$E$109,"=Marie Procházková") -> 212 | I37: =E37/(E37+H37) -> 0.9347491536 | J37: =G37/D37 -> 12.05244755 | K37: ='Měsíční přehledy'!F37-'Optimalizace Výroby'!$O$16 -> 16.09090909
C38: Tomáš Novák | D38: =COUNTIFS(Zaměstnanci!$E$49:$E$109,"=Tomáš Novák") -> 11 | E38: =SUMIFS(Zaměstnanci!$I$49:$I$109,Zaměstnanci!$E$49:$E$109,"=Tomáš Novák") -> 2795 | F38: =E38/D38 -> 254.0909091 | G38: =E38-($E$44*D38) -> -109.4230769 | H38: =SUMIFS(Zaměstnanci!$G$49:$G$109,Zaměstnanci!$E$49:$E$109,"=Tomáš Novák") -> 237 | I38: =E38/(E38+H38) -> 0.9218337731 | J38: =G38/D38 -> -9.947552448 | K38: ='Měsíční přehledy'!F38-'Optimalizace Výroby'!$O$16 -> -5.909090909
C39: Lucie Růžičková | D39: =COUNTIFS(Zaměstnanci!$E$49:$E$109,"=Lucie Růžičková") -> 10 | E39: =SUMIFS(Zaměstnanci!$I$49:$I$109,Zaměstnanci!$E$49:$E$109,"=Lucie Růžičková") -> 2610 | F39: =E39/D39 -> 261 | G39: =E39-($E$44*D39) -> -30.38461538 | H39: =SUMIFS(Zaměstnanci!$G$49:$G$109,Zaměstnanci!$E$49:$E$109,"=Lucie Růžičková") -> 166 | I39: =E39/(E39+H39) -> 0.9402017291 | J39: =G39/D39 -> -3.038461538 | K39: ='Měsíční přehledy'!F39-'Optimalizace Výroby'!$O$16 -> 1
C40: Zdeněk Lichý | D40: =COUNTIFS(Zaměstnanci!$E$49:$E$109,"=Zdeněk Lichý") -> 10 | E40: =SUMIFS(Zaměstnanci!$I$49:$I$109,Zaměstnanci!$E$49:$E$109,"=Zdeněk Lichý") -> 2636 | F40: =E40/D40 -> 263.6 | G40: =E40-($E$44*D40) -> -4.384615385 | H40: =SUMIFS(Zaměstnanci!$G$49:$G$109,Zaměstnanci!$E$49:$E$109,"=Zdeněk Lichý") -> 190 | I40: =E40/(E40+H40) -> 0.9327671621 | J40: =G40/D40 -> -0.4384615385 | K40: ='Měsíční přehledy'!F40-'Optimalizace Výroby'!$O$16 -> 3.6
C41: Jan Soukup | D41: =COUNTIFS(Zaměstnanci!$E$49:$E$109,"=Jan Soukup") -> 10 | E41: =SUMIFS(Zaměstnanci!$I$49:$I$109,Zaměstnanci!$E$49:$E$109,"=Jan Soukup") -> 2652 | F41: =E41/D41 -> 265.2 | G41: =E41-($E$44*D41) -> 11.61538462 | H41: =SUMIFS(Zaměstnanci!$G$49:$G$109,Zaměstnanci!$E$49:$E$109,"=Jan Soukup") -> 181 | I41: =E41/(E41+H41) -> 0.9361101306 | J41: =G41/D41 -> 1.161538462 | K41: ='Měsíční přehledy'!F41-'Optimalizace Výroby'!$O$16 -> 5.2
C42: Celkem | D42: =SUM(D37:D41) -> 52 | E42: =SUM(E37:E41) -> 13730 | H42: =SUM(H37:H41) -> 986
C43: Průměr/zaměstnanec | D43: =AVERAGE(D37:D41) -> 10.4 | E43: =AVERAGE(E37:E41) -> 2746 | H43: =AVERAGE(H37:H41) -> 197.2 | I43: =AVERAGE(I37:I41) -> 0.9331323897
C44: Průměr/den | E44: =E42/D42 -> 264.0384615 | H44: =H42/D42 -> 18.96153846

Sheet Optimalizace Výroby
C3: OPTIMALIZACE VÝROBY
C5: DOSAŽENÍ NEJVYŠŠÍHO ZISKU PŘI PODMÍNKÁCH: kapacita skladů (pro materiály i hotové výrobky)
C7: Materiál | D7: Druh výrobku | G7: Max. množství | K7: Materiál | L7: Cena materiálu
D8: A | E8: B | F8: C | I8: Podmínky
C9: M1 | D9: 4 | E9: 3.2 | F9: 1.6 | G9: =G21 -> 800 | I9: =SUMPRODUCT(D9:F9,$D$14:$F$14) -> 780 | K9: S1 | L9: 5
C10: M2 | D10: 0.5 | E10: 1.2 | F10: 4.5 | G10: =G22 -> 500 | I10: =SUMPRODUCT(D10:F10,$D$14:$F$14) -> 500 | K10: S2 | L10: 3.5
C11: M3 | D11: 3.25 | E11: 2.4 | F11: 1.5 | G11: =G23 -> 800 | I11: =SUMPRODUCT(D11:F11,$D$14:$F$14) -> 628.75 | K11: S3 | L11: 2.5
O12: Požadavek na denní výrobu
C14: Výroba | D14: 85 | E14: 100 | F14: 75 | G14: ks | I14: Tržba | K14: Náklady na materiál | M14: Zisk
C15: Podmínky | D15: =N21 -> 100 | E15: =N22 -> 100 | F15: =N23 -> 80 | G15: ks
C16: Prodejní cena | D16: 50 | E16: 75 | F16: 60 | G16: Kč/ks | I16: =SUMPRODUCT(D14:F14,D16:F16) -> 16250 | J16: - | K16: =SUMPRODUCT(I9:I11,L9:L11) -> 7221.875 | L16: = | M16: =I16-K16 -> 9028.125 | O16: =SUM(D14:F14) -> 260
D21: Kapacita skladu pro materiál | F21: M1 | G21: 800 | J21: Kapacita skladu pro výrobky | M21: A | N21: 100
F22: M2 | G22: 500 | M22: B | N22: 100
F23: M3 | G23: 800 | M23: C | N23: 80

Sheet Základ pro mzdu
E3: Výpočet základní mzdy
F6: Pracovní doba (h) | G6: 12
F7: Hodinová mzda | G7: 90
E9: Pohyblivá složka
E10: Efektivita | H10: Průměrný denní odklon od požadavku
E11: menší než 93% (včetně) | G11: 0 | I11: <0 | J11: 0
E12: 0.93 | F12: 0.94 | G12: 0.05 | H12: 0 | I12: 5 | J12: 0.05
E13: 0.95 | F13: 0.96 | G13: 0.075 | H13: 6 | I13: 10 | J13: 0.075
E14: 0.96 | F14: (včetně 96 %) 100% | G14: 0.1 | H14: 11 | I14: a více | J14: 0.1
E18: ZÁŘÍ | F18: Počet hodin | G18: Pevná složka | H18: Pohyblivá složka | J18: Základní mzda
E19: Jméno | H19: Efektivita | I19: Produktivita
E20: =Marie -> Marie Procházková | F20: =VLOOKUP('Základ pro mzdu'!E20,'Měsíční přehledy'!$C$10:$D$14,2,FALSE)*'Základ pro mzdu'!$G$6 -> 60 | G20: =F20*$G$7 -> 5400 | H20: =IF(VLOOKUP(E20,'Měsíční přehledy'!$C$10:$I$14,7,FALSE)<='Základ pro mzdu'!$E$12,'Základ pro mzdu'!G20*$G$11,IF(VLOOKUP(E20,'Měsíční přehledy'!$C$10:$I$14,7,FALSE)<'Základ pro mzdu'!$E$13,G20*$G$12,IF(VLOOKUP(E20,'Měsíční přehledy'!$C$10:$I$14,7,FALSE)<$E$14,'Základ pro mzdu'!G20*$G$13,'Základ pro mzdu'!G20*$G$14))) -> 0 | I20: =IF(VLOOKUP(E20,'Měsíční přehledy'!$C$10:$K$14,9,FALSE)<='Základ pro mzdu'!$H$12,'Základ pro mzdu'!G20*$J$11,IF(VLOOKUP(E20,'Měsíční přehledy'!$C$10:$K$14,9,FALSE)<'Základ pro mzdu'!$H$13,G20*$J$12,IF(VLOOKUP(E20,'Měsíční přehledy'!$C$10:$K$14,9,FALSE)<$H$14,'Základ pro mzdu'!G20*$J$13,'Základ pro mzdu'!G20*$J$14))) -> 405 | J20: =SUM(G20:I20) -> 5805
E21: =Tomáš -> Tomáš Novák | F21: =VLOOKUP('Základ pro mzdu'!E21,'Měsíční přehledy'!$C$10:$D$14,2,FALSE)*'Základ pro mzdu'!$G$6 -> 60 | G21: =F21*$G$7 -> 5400 | H21: =IF(VLOOKUP(E21,'Měsíční přehledy'!$C$10:$I$14,7,FALSE)<='Základ pro mzdu'!$E$12,'Základ pro mzdu'!G21*$G$11,IF(VLOOKUP(E21,'Měsíční přehledy'!$C$10:$I$14,7,FALSE)<'Základ pro mzdu'!$E$13,G21*$G$12,IF(VLOOKUP(E21,'Měsíční přehledy'!$C$10:$I$14,7,FALSE)<$E$14,'Základ pro mzdu'!G21*$G$13,'Základ pro mzdu'!G21*$G$14))) -> 0 | I21: =IF(VLOOKUP(E21,'Měsíční přehledy'!$C$10:$K$14,9,FALSE)<='Základ pro mzdu'!$H$12,'Základ pro mzdu'!G21*$J$11,IF(VLOOKUP(E21,'Měsíční přehledy'!$C$10:$K$14,9,FALSE)<'Základ pro mzdu'!$H$13,G21*$J$12,IF(VLOOKUP(E21,'Měsíční přehledy'!$C$10:$K$14,9,FALSE)<$H$14,'Základ pro mzdu'!G21*$J$13,'Základ pro mzdu'!G21*$J$14))) -> 0 | J21: =SUM(G21:I21) -> 5400
E22: =Lucie -> Lucie Růžičková | F22: =VLOOKUP('Základ pro mzdu'!E22,'Měsíční přehledy'!$C$10:$D$14,2,FALSE)*'Základ pro mzdu'!$G$6 -> 60 | G22: =F22*$G$7 -> 5400 | H22: =IF(VLOOKUP(E22,'Měsíční přehledy'!$C$10:$I$14,7,FALSE)<='Základ pro mzdu'!$E$12,'Základ pro mzdu'!G22*$G$11,IF(VLOOKUP(E22,'Měsíční přehledy'!$C$10:$I$14,7,FALSE)<'Základ pro mzdu'!$E$13,G22*$G$12,IF(VLOOKUP(E22,'Měsíční přehledy'!$C$10:$I$14,7,FALSE)<$E$14,'Základ pro mzdu'!G22*$G$13,'Základ pro mzdu'!G22*$G$14))) -> 270 | I22: =IF(VLOOKUP(E22,'Měsíční přehledy'!$C$10:$K$14,9,FALSE)<='Základ pro mzdu'!$H$12,'Základ pro mzdu'!G22*$J$11,IF(VLOOKUP(E22,'Měsíční přehledy'!$C$10:$K$14,9,FALSE)<'Základ pro mzdu'!$H$13,G22*$J$12,IF(VLOOKUP(E22,'Měsíční přehledy'!$C$10:$K$14,9,FALSE)<$H$14,'Základ pro mzdu'!G22*$J$13,'Základ pro mzdu'!G22*$J$14))) -> 0 | J22: 5670
E23: =Zdeněk -> Zdeněk Lichý | F23: =VLOOKUP('Základ pro mzdu'!E23,'Měsíční přehledy'!$C$10:$D$14,2,FALSE)*'Základ pro mzdu'!$G$6 -> 60 | G23: =F23*$G$7 -> 5400 | H23: =IF(VLOOKUP(E23,'Měsíční přehledy'!$C$10:$I$14,7,FALSE)<='Základ pro mzdu'!$E$12,'Základ pro mzdu'!G23*$G$11,IF(VLOOKUP(E23,'Měsíční přehledy'!$C$10:$I$14,7,FALSE)<'Základ pro mzdu'!$E$13,G23*$G$12,IF(VLOOKUP(E23,'Měsíční přehledy'!$C$10:$I$14,7,FALSE)<$E$14,'Základ pro mzdu'!G23*$G$13,'Základ pro mzdu'!G23*$G$14))) -> 0 | I23: =IF(VLOOKUP(E23,'Měsíční přehledy'!$C$10:$K$14,9,FALSE)<='Základ pro mzdu'!$H$12,'Základ pro mzdu'!G23*$J$11,IF(VLOOKUP(E23,'Měsíční přehledy'!$C$10:$K$14,9,FALSE)<'Základ pro mzdu'!$H$13,G23*$J$12,IF(VLOOKUP(E23,'Měsíční přehledy'!$C$10:$K$14,9,FALSE)<$H$14,'Základ pro mzdu'!G23*$J$13,'Základ pro mzdu'!G23*$J$14))) -> 0 | J23: 5400
E24: =Jan -> Jan Soukup | F24: =VLOOKUP('Základ pro mzdu'!E24,'Měsíční přehledy'!$C$10:$D$14,2,FALSE)*'Základ pro mzdu'!$G$6 -> 60 | G24: =F24*$G$7 -> 5400 | H24: =IF(VLOOKUP(E24,'Měsíční přehledy'!$C$10:$I$14,7,FALSE)<='Základ pro mzdu'!$E$12,'Základ pro mzdu'!G24*$G$11,IF(VLOOKUP(E24,'Měsíční přehledy'!$C$10:$I$14,7,FALSE)<'Základ pro mzdu'!$E$13,G24*$G$12,IF(VLOOKUP(E24,'Měsíční přehledy'!$C$10:$I$14,7,FALSE)<$E$14,'Základ pro mzdu'!G24*$G$13,'Základ pro mzdu'!G24*$G$14))) -> 270 | I24: =IF(VLOOKUP(E24,'Měsíční přehledy'!$C$10:$K$14,9,FALSE)<='Základ pro mzdu'!$H$12,'Základ pro mzdu'!G24*$J$11,IF(VLOOKUP(E24,'Měsíční přehledy'!$C$10:$K$14,9,FALSE)<'Základ pro mzdu'!$H$13,G24*$J$12,IF(VLOOKUP(E24,'Měsíční přehledy'!$C$10:$K$14,9,FALSE)<$H$14,'Základ pro mzdu'!G24*$J$13,'Základ pro mzdu'!G24*$J$14))) -> 0 | J24: 5670
E25: ŘÍJEN | F25: Počet hodin | G25: Pevná složka | H25: Pohyblivá složka | J25: Základní mzda
E26: Jméno | H26: Efektivita | I26: Produktivita
E27: =Marie -> Marie Procházková | F27: =VLOOKUP('Základ pro mzdu'!E27,'Měsíční přehledy'!$C$24:$D$28,2,FALSE)*'Základ pro mzdu'!$G$6 -> 72 | G27: =F27*$G$7 -> 6480 | H27: =IF(VLOOKUP(E27,'Měsíční přehledy'!$C$24:$K$28,7,FALSE)<='Základ pro mzdu'!$E$12,'Základ pro mzdu'!G27*$G$11,IF(VLOOKUP(E27,'Měsíční přehledy'!$C$24:$K$28,7,FALSE)<'Základ pro mzdu'!$E$13,G27*$G$12,IF(VLOOKUP(E27,'Měsíční přehledy'!$C$24:$K$28,7,FALSE)<$E$14,'Základ pro mzdu'!G27*$G$13,'Základ pro mzdu'!G27*$G$14))) -> 324 | I27: =IF(VLOOKUP(E27,'Měsíční přehledy'!$C$24:$K$28,9,FALSE)<='Základ pro mzdu'!$H$12,'Základ pro mzdu'!G27*$J$11,IF(VLOOKUP(E27,'Měsíční přehledy'!$C$24:$K$28,9,FALSE)<'Základ pro mzdu'!$H$13,G27*$J$12,IF(VLOOKUP(E27,'Měsíční přehledy'!$C$24:$K$28,9,FALSE)<$H$14,'Základ pro mzdu'!G27*$J$13,'Základ pro mzdu'!G27*$J$14))) -> 648 | J27: =SUM(G27:I27) -> 7452
E28: =Tomáš -> Tomáš Novák | F28: =VLOOKUP('Základ pro mzdu'!E28,'Měsíční přehledy'!$C$24:$D$28,2,FALSE)*'Základ pro mzdu'!$G$6 -> 72 | G28: =F28*$G$7 -> 6480 | H28: =IF(VLOOKUP(E28,'Měsíční přehledy'!$C$24:$K$28,7,FALSE)<='Základ pro mzdu'!$E$12,'Základ pro mzdu'!G28*$G$11,IF(VLOOKUP(E28,'Měsíční přehledy'!$C$24:$K$28,7,FALSE)<'Základ pro mzdu'!$E$13,G28*$G$12,IF(VLOOKUP(E28,'Měsíční přehledy'!$C$24:$K$28,7,FALSE)<$E$14,'Základ pro mzdu'!G28*$G$13,'Základ pro mzdu'!G28*$G$14))) -> 324 | I28: =IF(VLOOKUP(E28,'Měsíční přehledy'!$C$24:$K$28,9,FALSE)<='Základ pro mzdu'!$H$12,'Základ pro mzdu'!G28*$J$11,IF(VLOOKUP(E28,'Měsíční přehledy'!$C$24:$K$28,9,FALSE)<'Základ pro mzdu'!$H$13,G28*$J$12,IF(VLOOKUP(E28,'Měsíční přehledy'!$C$24:$K$28,9,FALSE)<$H$14,'Základ pro mzdu'!G28*$J$13,'Základ pro mzdu'!G28*$J$14))) -> 0 | J28: =SUM(G28:I28) -> 6804
E29: =Lucie -> Lucie Růžičková | F29: =VLOOKUP('Základ pro mzdu'!E29,'Měsíční přehledy'!$C$24:$D$28,2,FALSE)*'Základ pro mzdu'!$G$6 -> 60 | G29: =F29*$G$7 -> 5400 | H29: =IF(VLOOKUP(E29,'Měsíční přehledy'!$C$24:$K$28,7,FALSE)<='Základ pro mzdu'!$E$12,'Základ pro mzdu'!G29*$G$11,IF(VLOOKUP(E29,'Měsíční přehledy'!$C$24:$K$28,7,FALSE)<'Základ pro mzdu'!$E$13,G29*$G$12,IF(VLOOKUP(E29,'Měsíční přehledy'!$C$24:$K$28,7,FALSE)<$E$14,'Základ pro mzdu'!G29*$G$13,'Základ pro mzdu'!G29*$G$14))) -> 270 | I29: =IF(VLOOKUP(E29,'Měsíční přehledy'!$C$24:$K$28,9,FALSE)<='Základ pro mzdu'!$H$12,'Základ pro mzdu'!G29*$J$11,IF(VLOOKUP(E29,'Měsíční přehledy'!$C$24:$K$28,9,FALSE)<'Základ pro mzdu'!$H$13,G29*$J$12,IF(VLOOKUP(E29,'Měsíční přehledy'!$C$24:$K$28,9,FALSE)<$H$14,'Základ pro mzdu'!G29*$J$13,'Základ pro mzdu'!G29*$J$14))) -> 405 | J29: 6075
E30: =Zdeněk -> Zdeněk Lichý | F30: =VLOOKUP('Základ pro mzdu'!E30,'Měsíční přehledy'!$C$24:$D$28,2,FALSE)*'Základ pro mzdu'!$G$6 -> 60 | G30: =F30*$G$7 -> 5400 | H30: =IF(VLOOKUP(E30,'Měsíční přehledy'!$C$24:$K$28,7,FALSE)<='Základ pro mzdu'!$E$12,'Základ pro mzdu'!G30*$G$11,IF(VLOOKUP(E30,'Měsíční přehledy'!$C$24:$K$28,7,FALSE)<'Základ pro mzdu'!$E$13,G30*$G$12,IF(VLOOKUP(E30,'Měsíční přehledy'!$C$24:$K$28,7,FALSE)<$E$14,'Základ pro mzdu'!G30*$G$13,'Základ pro mzdu'!G30*$G$14))) -> 270 | I30: =IF(VLOOKUP(E30,'Měsíční přehledy'!$C$24:$K$28,9,FALSE)<='Základ pro mzdu'!$H$12,'Základ pro mzdu'!G30*$J$11,IF(VLOOKUP(E30,'Měsíční přehledy'!$C$24:$K$28,9,FALSE)<'Základ pro mzdu'!$H$13,G30*$J$12,IF(VLOOKUP(E30,'Měsíční přehledy'!$C$24:$K$28,9,FALSE)<$H$14,'Základ pro mzdu'!G30*$J$13,'Základ pro mzdu'!G30*$J$14))) -> 540 | J30: 6210
E31: =Jan -> Jan Soukup | F31: =VLOOKUP('Základ pro mzdu'!E31,'Měsíční přehledy'!$C$24:$D$28,2,FALSE)*'Základ pro mzdu'!$G$6 -> 60 | G31: =F31*$G$7 -> 5400 | H31: =IF(VLOOKUP(E31,'Měsíční přehledy'!$C$24:$K$28,7,FALSE)<='Základ pro mzdu'!$E$12,'Základ pro mzdu'!G31*$G$11,IF(VLOOKUP(E31,'Měsíční přehledy'!$C$24:$K$28,7,FALSE)<'Základ pro mzdu'!$E$13,G31*$G$12,IF(VLOOKUP(E31,'Měsíční přehledy'!$C$24:$K$28,7,FALSE)<$E$14,'Základ pro mzdu'!G31*$G$13,'Základ pro mzdu'!G31*$G$14))) -> 270 | I31: =IF(VLOOKUP(E31,'Měsíční přehledy'!$C$24:$K$28,9,FALSE)<='Základ pro mzdu'!$H$12,'Základ pro mzdu'!G31*$J$11,IF(VLOOKUP(E31,'Měsíční přehledy'!$C$24:$K$28,9,FALSE)<'Základ pro mzdu'!$H$13,G31*$J$12,IF(VLOOKUP(E31,'Měsíční přehledy'!$C$24:$K$28,9,FALSE)<$H$14,'Základ pro mzdu'!G31*$J$13,'Základ pro mzdu'!G31*$J$14))) -> 540 | J31: 6210

Sheet Rozhodnutí o půjčce
B3: Zpráva scénáře | D3: KB | E3: ČSOB | F3: ČS | G3: GE | H3: UNICredit
D4: 0.06 | E4: 0.065 | F4: 0.07 | G4: 0.075 | H4: 0.08
B6: Měněné buňky:
C7: Úroková_sazba | D7: 0.06 | E7: 0.065 | F7: 0.07 | G7: 0.075 | H7: 0.08
C8: Doba_splátek | D8: 84 | E8: 72 | F8: 65 | G8: 60 | H8: 55
B9: Výsledné buňky:
C10: Platba | D10: -29217.10897 | E10: -33619.85925 | F10: -37058.91129 | G10: -40075.89719 | H10: -43556.53534
C11: Celkové_náklady | D11: -2454237.153 | E11: -2420629.866 | F11: -2408829.234 | G11: -2404553.831 | H11: -2395609.443
C12: Úrok | D12: 454237.1533 | E12: 420629.8658 | F12: 408829.2337 | G12: 404553.8315 | H12: 395609.4434
C13: Půjčka | D13: 2000000 | E13: 2000000 | F13: 2000000 | G13: 2000000 | H13: 2000000
C15: Podmínky vedení
C16: Měsíční platba nepřevýší | D16: 40000
C17: Splacení v intervalu 4-7 let | D17: =4*12 -> 48 | E17: =7*12 -> 84 | F17: měsíců
C18: Zaplatíme navíc max | D18: 410000

Sheet Data k půjčce
E4: Data k půjčce
E7: Půjčka | F7: 2000000
E8: Úroková sazba | F8: 0.06
E9: Doba splátek | F9: 84
E10: Platba | F10: =PMT(F8/12,F9,F7) -> -29217.10897
E11: Celkové náklady | F11: =F10*F9 -> -2454237.153
E12: Úrok | F12: =-F7-F11 -> 454237.1533

Sheet Graf Všichni
K26: Datum | L26: Efektivita | M26: Vyrobeno beze zmetků
K27: =Zaměstnanci!C50 -> 41519 | L27: =Zaměstnanci!H50 -> 0.9055944056 | M27: =Zaměstnanci!I50 -> 259 | O27: Korelace produktivita/efektivita
K28: =Zaměstnanci!C51 -> 41520 | L28: =Zaměstnanci!H51 -> 0.9146341463 | M28: =Zaměstnanci!I51 -> 225
K29: =Zaměstnanci!C52 -> 41521 | L29: =Zaměstnanci!H52 -> 0.9276315789 | M29: =Zaměstnanci!I52 -> 282 | O29: Září | P29: =CORREL(L27:L51,M27:M51) -> 0.2536937163
K30: =Zaměstnanci!C53 -> 41522 | L30: =Zaměstnanci!H53 -> 0.9090909091 | M30: =Zaměstnanci!I53 -> 300 | O30: Říjen | P30: =CORREL(L52:L78,M52:M78) -> 0.3353372007
K31: =Zaměstnanci!C54 -> 41523 | L31: =Zaměstnanci!H54 -> 0.9202898551 | M31: =Zaměstnanci!I54 -> 254 | O31: Celková | P31: =CORREL(L27:L78,M27:M78) -> 0.3553980585
K32: =Zaměstnanci!C55 -> 41524 | L32: =Zaměstnanci!H55 -> 0.9049429658 | M32: =Zaměstnanci!I55 -> 238
K33: =Zaměstnanci!C57 -> 41526 | L33: =Zaměstnanci!H57 -> 0.9298245614 | M33: =Zaměstnanci!I57 -> 318
K34: =Zaměstnanci!C58 -> 41527 | L34: =Zaměstnanci!H58 -> 0.9004329004 | M34: =Zaměstnanci!I58 -> 208 | O34: Efektivita | P34: 0.88 | Q34: 0.92 | R34: 0.96 | S34: 0.99
K35: =Zaměstnanci!C59 -> 41528 | L35: =Zaměstnanci!H59 -> 0.8973214286 | M35: =Zaměstnanci!I59 -> 201 | O35: Předpověď produktivity
K36: =Zaměstnanci!C60 -> 41529 | L36: =Zaměstnanci!H60 -> 0.9028340081 | M36: =Zaměstnanci!I60 -> 223 | P36: =FORECAST(P34:S34,M27:M78,L27:L78) -> 238.2663893 | Q36: 257.9555574 | R36: 277.6447256 | S36: 292.4116017
K37: =Zaměstnanci!C61 -> 41530 | L37: =Zaměstnanci!H61 -> 0.9684684685 | M37: =Zaměstnanci!I61 -> 215
K38: =Zaměstnanci!C62 -> 41531 | L38: =Zaměstnanci!H62 -> 0.9030100334 | M38: =Zaměstnanci!I62 -> 270
K39: =Zaměstnanci!C64 -> 41533 | L39: =Zaměstnanci!H64 -> 0.9677419355 | M39: =Zaměstnanci!I64 -> 270
K40: =Zaměstnanci!C65 -> 41534 | L40: =Zaměstnanci!H65 -> 0.8720930233 | M40: =Zaměstnanci!I65 -> 225
K41: =Zaměstnanci!C66 -> 41535 | L41: =Zaměstnanci!H66 -> 0.9487179487 | M41: =Zaměstnanci!I66 -> 222
K42: =Zaměstnanci!C67 -> 41536 | L42: =Zaměstnanci!H67 -> 0.9415384615 | M42: =Zaměstnanci!I67 -> 306
K43: =Zaměstnanci!C68 -> 41537 | L43: =Zaměstnanci!H68 -> 0.8783783784 | M43: =Zaměstnanci!I68 -> 195
K44: =Zaměstnanci!C69 -> 41538 | L44: =Zaměstnanci!H69 -> 0.9513888889 | M44: =Zaměstnanci!I69 -> 274
K45: =Zaměstnanci!C71 -> 41540 | L45: =Zaměstnanci!H71 -> 0.9407407407 | M45: =Zaměstnanci!I71 -> 254
K46: =Zaměstnanci!C72 -> 41541 | L46: =Zaměstnanci!H72 -> 0.9446494465 | M46: =Zaměstnanci!I72 -> 256
K47: =Zaměstnanci!C73 -> 41542 | L47: =Zaměstnanci!H73 -> 0.9262536873 | M47: =Zaměstnanci!I73 -> 314
K48: =Zaměstnanci!C74 -> 41543 | L48: =Zaměstnanci!H74 -> 0.9160305344 | M48: =Zaměstnanci!I74 -> 240
K49: =Zaměstnanci!C75 -> 41544 | L49: =Zaměstnanci!H75 -> 0.9494163424 | M49: =Zaměstnanci!I75 -> 244
K50: =Zaměstnanci!C76 -> 41545 | L50: =Zaměstnanci!H76 -> 0.9652509653 | M50: =Zaměstnanci!I76 -> 250
K51: =Zaměstnanci!C78 -> 41547 | L51: =Zaměstnanci!H78 -> 0.9502262443 | M51: =Zaměstnanci!I78 -> 210
K52: =Zaměstnanci!C79 -> 41548 | L52: =Zaměstnanci!H79 -> 0.9492537313 | M52: =Zaměstnanci!I79 -> 318
K53: =Zaměstnanci!C80 -> 41549 | L53: =Zaměstnanci!H80 -> 0.9307692308 | M53: =Zaměstnanci!I80 -> 242
K54: =Zaměstnanci!C81 -> 41550 | L54: =Zaměstnanci!H81 -> 0.9719298246 | M54: =Zaměstnanci!I81 -> 277
K55: =Zaměstnanci!C82 -> 41551 | L55: =Zaměstnanci!H82 -> 0.9790419162 | M55: =Zaměstnanci!I82 -> 327
K56: =Zaměstnanci!C83 -> 41552 | L56: =Zaměstnanci!H83 -> 0.9518072289 | M56: =Zaměstnanci!I83 -> 316
K57: =Zaměstnanci!C85 -> 41554 | L57: =Zaměstnanci!H85 -> 0.8896797153 | M57: =Zaměstnanci!I85 -> 250
K58: =Zaměstnanci!C86 -> 41555 | L58: =Zaměstnanci!H86 -> 0.9131736527 | M58: =Zaměstnanci!I86 -> 305
K59: =Zaměstnanci!C87 -> 41556 | L59: =Zaměstnanci!H87 -> 0.9625 | M59: =Zaměstnanci!I87 -> 231
K60: =Zaměstnanci!C88 -> 41557 | L60: =Zaměstnanci!H88 -> 0.9579288026 | M60: =Zaměstnanci!I88 -> 296
K61: =Zaměstnanci!C89 -> 41558 | L61: =Zaměstnanci!H89 -> 0.9582089552 | M61: =Zaměstnanci!I89 -> 321
K62: =Zaměstnanci!C90 -> 41559 | L62: =Zaměstnanci!H90 -> 0.9258241758 | M62: =Zaměstnanci!I90 -> 337
K63: =Zaměstnanci!C92 -> 41561 | L63: =Zaměstnanci!H92 -> 0.8706896552 | M63: =Zaměstnanci!I92 -> 202
K64: =Zaměstnanci!C93 -> 41562 | L64: =Zaměstnanci!H93 -> 0.910652921 | M64: =Zaměstnanci!I93 -> 265
K65: =Zaměstnanci!C94 -> 41563 | L65: =Zaměstnanci!H94 -> 0.9393939394 | M65: =Zaměstnanci!I94 -> 248
K66: =Zaměstnanci!C95 -> 41564 | L66: =Zaměstnanci!H95 -> 0.92 | M66: =Zaměstnanci!I95 -> 322
K67: =Zaměstnanci!C96 -> 41565 | L67: =Zaměstnanci!H96 -> 0.9598214286 | M67: =Zaměstnanci!I96 -> 215
K68: =Zaměstnanci!C97 -> 41566 | L68: =Zaměstnanci!H97 -> 0.9696969697 | M68: =Zaměstnanci!I97 -> 256
K69: =Zaměstnanci!C99 -> 41568 | L69: =Zaměstnanci!H99 -> 0.9432835821 | M69: =Zaměstnanci!I99 -> 316
K70: =Zaměstnanci!C100 -> 41569 | L70: =Zaměstnanci!H100 -> 0.9206349206 | M70: =Zaměstnanci!I100 -> 290
K71: =Zaměstnanci!C101 -> 41570 | L71: =Zaměstnanci!H101 -> 0.8964285714 | M71: =Zaměstnanci!I101 -> 251
K72: =Zaměstnanci!C102 -> 41571 | L72: =Zaměstnanci!H102 -> 0.9601226994 | M72: =Zaměstnanci!I102 -> 313
K73: =Zaměstnanci!C103 -> 41572 | L73: =Zaměstnanci!H103 -> 0.9372693727 | M73: =Zaměstnanci!I103 -> 254
K74: =Zaměstnanci!C104 -> 41573 | L74: =Zaměstnanci!H104 -> 0.9135338346 | M74: =Zaměstnanci!I104 -> 243
K75: =Zaměstnanci!C106 -> 41575 | L75: =Zaměstnanci!H106 -> 0.9315589354 | M75: =Zaměstnanci!I106 -> 245
K76: =Zaměstnanci!C107 -> 41576 | L76: =Zaměstnanci!H107 -> 0.9651567944 | M76: =Zaměstnanci!I107 -> 277
K77: =Zaměstnanci!C108 -> 41577 | L77: =Zaměstnanci!H108 -> 0.9577464789 | M77: =Zaměstnanci!I108 -> 272
K78: =Zaměstnanci!C109 -> 41578 | L78: =Zaměstnanci!H109 -> 0.96 | M78: =Zaměstnanci!I109 -> 288

Sheet Graf Marie
N6: Datum | O6: Efektivita | P6: Vyrobeno beze zmetků
N7: =Zaměstnanci!$C$50 -> 41519 | O7: =Zaměstnanci!H50 -> 0.9055944056 | P7: =Zaměstnanci!I50 -> 259
N8: =Zaměstnanci!$C$55 -> 41524 | O8: =Zaměstnanci!H55 -> 0.9049429658 | P8: =Zaměstnanci!I55 -> 238
N9: =Zaměstnanci!$C$61 -> 41530 | O9: =Zaměstnanci!H61 -> 0.9684684685 | P9: =Zaměstnanci!I61 -> 215
N10: =Zaměstnanci!$C$67 -> 41536 | O10: =Zaměstnanci!H67 -> 0.9415384615 | P10: =Zaměstnanci!I67 -> 306
N11: =Zaměstnanci!$C$73 -> 41542 | O11: =Zaměstnanci!H73 -> 0.9262536873 | P11: =Zaměstnanci!I73 -> 314
N12: =Zaměstnanci!$C$79 -> 41548 | O12: =Zaměstnanci!H79 -> 0.9492537313 | P12: =Zaměstnanci!I79 -> 318
N13: =Zaměstnanci!$C$85 -> 41554 | O13: =Zaměstnanci!H85 -> 0.8896797153 | P13: =Zaměstnanci!I85 -> 250
N14: =Zaměstnanci!$C$90 -> 41559 | O14: =Zaměstnanci!H90 -> 0.9258241758 | P14: =Zaměstnanci!I90 -> 337
N15: =Zaměstnanci!$C$96 -> 41565 | O15: =Zaměstnanci!H96 -> 0.9598214286 | P15: =Zaměstnanci!I96 -> 215
N16: =Zaměstnanci!$C$102 -> 41571 | O16: =Zaměstnanci!H102 -> 0.9601226994 | P16: =Zaměstnanci!I102 -> 313
N17: =Zaměstnanci!$C$108 -> 41577 | O17: =Zaměstnanci!H108 -> 0.9577464789 | P17: =Zaměstnanci!I108 -> 272

Sheet Graf Tomáš
N6: Datum | O6: Efektivita | P6: Vyrobeno beze zmetků
N7: =Zaměstnanci!$C$51 -> 41520 | O7: =Zaměstnanci!H51 -> 0.9146341463 | P7: =Zaměstnanci!I51 -> 225
N8: =Zaměstnanci!$C$57 -> 41526 | O8: =Zaměstnanci!H57 -> 0.9298245614 | P8: =Zaměstnanci!I57 -> 318
N9: =Zaměstnanci!$C$62 -> 41531 | O9: =Zaměstnanci!H62 -> 0.9030100334 | P9: =Zaměstnanci!I62 -> 270
N10: =Zaměstnanci!$C$68 -> 41537 | O10: =Zaměstnanci!H68 -> 0.8783783784 | P10: =Zaměstnanci!I68 -> 195
N11: =Zaměstnanci!$C$74 -> 41543 | O11: =Zaměstnanci!H74 -> 0.9160305344 | P11: =Zaměstnanci!I74 -> 240
N12: =Zaměstnanci!$C$80 -> 41549 | O12: =Zaměstnanci!H80 -> 0.9307692308 | P12: =Zaměstnanci!I80 -> 242
N13: =Zaměstnanci!$C$86 -> 41555 | O13: =Zaměstnanci!H86 -> 0.9131736527 | P13: =Zaměstnanci!I86 -> 305
N14: =Zaměstnanci!$C$92 -> 41561 | O14: =Zaměstnanci!H92 -> 0.8706896552 | P14: =Zaměstnanci!I92 -> 202
N15: =Zaměstnanci!$C$97 -> 41566 | O15: =Zaměstnanci!H97 -> 0.9696969697 | P15: =Zaměstnanci!I97 -> 256
N16: =Zaměstnanci!$C$103 -> 41572 | O16: =Zaměstnanci!H103 -> 0.9372693727 | P16: =Zaměstnanci!I103 -> 254
N17: =Zaměstnanci!$C$109 -> 41578 | O17: =Zaměstnanci!H109 -> 0.96 | P17: =Zaměstnanci!I109 -> 288

Sheet Graf Lucie
N6: Datum | O6: Efektivita | P6: Vyrobeno beze zmetků
N7: =Zaměstnanci!$C$52 -> 41521 | O7: =Zaměstnanci!H52 -> 0.9276315789 | P7: =Zaměstnanci!I52 -> 282
N8: =Zaměstnanci!$C$58 -> 41527 | O8: =Zaměstnanci!H58 -> 0.9004329004 | P8: =Zaměstnanci!I58 -> 208
N9: =Zaměstnanci!$C$64 -> 41533 | O9: =Zaměstnanci!H64 -> 0.9677419355 | P9: =Zaměstnanci!I64 -> 270
N10: =Zaměstnanci!$C$69 -> 41538 | O10: =Zaměstnanci!H69 -> 0.9513888889 | P10: =Zaměstnanci!I69 -> 274
N11: =Zaměstnanci!$C$75 -> 41544 | O11: =Zaměstnanci!H75 -> 0.9494163424 | P11: =Zaměstnanci!I75 -> 244
N12: =Zaměstnanci!$C$81 -> 41550 | O12: =Zaměstnanci!H81 -> 0.9719298246 | P12: =Zaměstnanci!I81 -> 277
N13: =Zaměstnanci!$C$87 -> 41556 | O13: =Zaměstnanci!H87 -> 0.9625 | P13: =Zaměstnanci!I87 -> 231
N14: =Zaměstnanci!$C$93 -> 41562 | O14: =Zaměstnanci!H93 -> 0.910652921 | P14: =Zaměstnanci!I93 -> 265
N15: =Zaměstnanci!$C$99 -> 41568 | O15: =Zaměstnanci!H99 -> 0.9432835821 | P15: =Zaměstnanci!I99 -> 316
N16: =Zaměstnanci!$C$104 -> 41573 | O16: =Zaměstnanci!H104 -> 0.9135338346 | P16: =Zaměstnanci!I104 -> 243

Sheet Graf Zdeněk
N6: Datum | O6: Efektivita | P6: Vyrobeno beze zmetků
N7: =Zaměstnanci!$C$53 -> 41522 | O7: =Zaměstnanci!H53 -> 0.9090909091 | P7: =Zaměstnanci!I53 -> 300
N8: =Zaměstnanci!$C$59 -> 41528 | O8: =Zaměstnanci!H59 -> 0.8973214286 | P8: =Zaměstnanci!I59 -> 201
N9: =Zaměstnanci!$C$65 -> 41534 | O9: =Zaměstnanci!H65 -> 0.8720930233 | P9: =Zaměstnanci!I65 -> 225
N10: =Zaměstnanci!$C$71 -> 41540 | O10: =Zaměstnanci!H71 -> 0.9407407407 | P10: =Zaměstnanci!I71 -> 254
N11: =Zaměstnanci!$C$76 -> 41545 | O11: =Zaměstnanci!H76 -> 0.9652509653 | P11: =Zaměstnanci!I76 -> 250
N12: =Zaměstnanci!$C$82 -> 41551 | O12: =Zaměstnanci!H82 -> 0.9790419162 | P12: =Zaměstnanci!I82 -> 327
N13: =Zaměstnanci!$C$88 -> 41557 | O13: =Zaměstnanci!H88 -> 0.9579288026 | P13: =Zaměstnanci!I88 -> 296
N14: =Zaměstnanci!$C$94 -> 41563 | O14: =Zaměstnanci!H94 -> 0.9393939394 | P14: =Zaměstnanci!I94 -> 248
N15: =Zaměstnanci!$C$100 -> 41569 | O15: =Zaměstnanci!H100 -> 0.9206349206 | P15: =Zaměstnanci!I100 -> 290
N16: =Zaměstnanci!$C$106 -> 41575 | O16: =Zaměstnanci!H106 -> 0.9315589354 | P16: =Zaměstnanci!I106 -> 245

Sheet Graf Jan
N6: Datum | O6: Efektivita | P6: Vyrobeno beze zmetků
N7: =Zaměstnanci!$C$54 -> 41523 | O7: =Zaměstnanci!H54 -> 0.9202898551 | P7: =Zaměstnanci!I54 -> 254
N8: =Zaměstnanci!$C$60 -> 41529 | O8: =Zaměstnanci!H60 -> 0.9028340081 | P8: =Zaměstnanci!I60 -> 223
N9: =Zaměstnanci!$C$66 -> 41535 | O9: =Zaměstnanci!H66 -> 0.9487179487 | P9: =Zaměstnanci!I66 -> 222
N10: =Zaměstnanci!$C$72 -> 41541 | O10: =Zaměstnanci!H72 -> 0.9446494465 | P10: =Zaměstnanci!I72 -> 256
N11: =Zaměstnanci!$C$78 -> 41547 | O11: =Zaměstnanci!H78 -> 0.9502262443 | P11: =Zaměstnanci!I78 -> 210
N12: =Zaměstnanci!$C$83 -> 41552 | O12: =Zaměstnanci!H83 -> 0.9518072289 | P12: =Zaměstnanci!I83 -> 316
N13: =Zaměstnanci!$C$89 -> 41558 | O13: =Zaměstnanci!H89 -> 0.9582089552 | P13: =Zaměstnanci!I89 -> 321
N14: =Zaměstnanci!$C$95 -> 41564 | O14: =Zaměstnanci!H95 -> 0.92 | P14: =Zaměstnanci!I95 -> 322
N15: =Zaměstnanci!$C$101 -> 41570 | O15: =Zaměstnanci!H101 -> 0.8964285714 | P15: =Zaměstnanci!I101 -> 251
N16: =Zaměstnanci!$C$107 -> 41576 | O16: =Zaměstnanci!H107 -> 0.9651567944 | P16: =Zaměstnanci!I107 -> 277
